bitfinex/quotes_ETHUSD_20220118
["timestamp","ask_amount","ask_price","bid_price","bid_amount"]
[1642524899046,0.00170527,3135.5,3134.9,0.00170527]
[1642524899247,0.00170527,3135.5,3135.0,0.79762]
[1642524899451,2.19905201,3135.2,3135.0,0.79762]
[1642524899689,0.00113685,3135.4,3135.0,0.79762]
[1642524899889,0.00284212,3135.7,3135.1,2.47848443]
[1642524900089,0.00284212,3135.7,3135.1,3.47848443]
[1642524900289,4.7542,3135.9,3135.5,4.5106653]
[1642524900290,0.0022737,3135.6,3135.5,4.5106653]
[1642524900691,0.0022737,3135.6,3135.5,6.96941487]
[1642524901094,0.0022737,3135.6,3135.5,3.76941487]
[1642524901292,0.0022737,3135.6,3135.5,4.56676487]
[1642524901692,0.0022737,3135.6,3135.5,2.1080153]
[1642524902392,0.0022737,3135.6,3135.5,4.54596504]
[1642524902593,0.0022737,3135.6,3135.5,0.79735]
[1642524903197,0.0022737,3135.6,3135.5,3.50887658]
[1642524903452,0.0022737,3135.6,3135.5,2.71152658]
[1642524903952,0.0022737,3135.6,3135.1,2.59484]
[1642524903953,0.0022737,3135.6,3135.0,0.1275]
[1642524904151,0.8136737,3135.6,3134.9,1.59682527]
[1642524904350,0.00170527,3135.5,3134.9,1.00170527]
[1642524904551,0.00170527,3135.5,3135.0,0.00113684]
[1642524904753,0.00113685,3135.4,3135.0,0.00113684]
[1642524905657,0.00113685,3135.4,3135.0,4.85718434]
[1642524905850,0.00113685,3135.4,3135.0,4.05974434]
[1642524906049,0.00113685,3135.4,3135.1,1.0]
[1642524906251,0.00113685,3135.4,3135.2,2.57508651]
[1642524906651,0.00113685,3135.4,3135.3,5.8]
[1642524906850,0.00113685,3135.4,3135.3,8.35722816]
[1642524907288,0.00113685,3135.4,3135.3,2.71171168]
[1642524908387,0.00113685,3135.4,3135.3,3.35029711]
[1642524908791,0.00113685,3135.4,3135.3,4.35029711]
[1642524909193,0.00113685,3135.4,3135.3,7.06200879]
[1642524910595,0.00113685,3135.4,3135.3,4.50918168]
[1642524911449,0.00113685,3135.4,3135.3,4.45918168]
[1642524912651,0.00113685,3135.4,3135.3,2.71171168]
[1642524914056,0.00113685,3135.4,3135.2,4.7147478]
[1642524914455,0.00113685,3135.4,3135.2,5.5122278]
[1642524914682,0.00113685,3135.4,3135.3,6.15465183]
[1642524914883,1.3093,3136.7,3135.4,5.9]
[1642524914884,4.5096,3136.7,3135.4,5.9]
[1642524915089,4.3821,3136.7,3135.5,5.21589394]
[1642524915283,0.00682108,3136.6,3135.5,5.67489394]
[1642524915485,0.00682108,3136.6,3135.7,0.79719]
[1642524915685,4.3821,3136.7,3135.7,1.25619]
[1642524915686,0.00625266,3136.5,3135.7,1.25619]
[1642524915886,0.00625266,3136.5,3136.1,1.75612516]
[1642524916086,6.49888163,3136.7,3136.2,2.39156]
[1642524916087,0.00568424,3136.4,3136.2,2.39156]
[1642524916290,0.00568424,3136.4,3136.2,1.59437]
[1642524916488,0.00511581,3136.3,3136.2,0.79719]
[1642524921246,0.00511581,3136.3,3136.0,1.59438]
[1642524921650,0.00454739,3136.2,3136.0,1.59438]
[1642524922104,0.00397896,3136.1,3136.0,1.59438]
[1642524922399,0.00397896,3136.1,3135.9,2.8565672]
[1642524922596,0.00397896,3136.1,3135.9,0.79746]
[1642524922797,0.00341054,3136.0,3135.9,0.79746]
[1642524923195,0.00511581,3136.0,3135.9,0.79746]
[1642524927646,0.00511581,3136.0,3135.9,3.26142596]
[1642524927846,0.00511581,3136.0,3135.9,0.79746]
[1642524928252,0.00511581,3136.0,3135.9,3.50887481]
[1642524934035,0.00511581,3136.0,3135.9,4.50887481]
[1642524934639,0.00511581,3136.0,3135.9,3.50887481]
[1642524934839,0.00511581,3136.0,3135.9,4.50887481]
[1642524936047,4.3821,3136.7,3135.9,3.50887481]
[1642524936244,4.3821,3136.7,3136.2,1.98101464]
[1642524936445,0.00170527,3136.6,3136.2,2.77838464]
[1642524936846,0.00113685,3136.5,3136.2,2.77838464]
[1642524937689,0.00113685,3136.5,3136.2,0.79737]
[1642524938090,0.90723685,3136.5,3136.2,0.79737]
[1642524938491,1.70471685,3136.5,3136.2,0.79737]
[1642524938893,1.88648471,3136.4,3136.2,0.79737]
[1642524939692,2.68400471,3136.4,3136.2,0.79737]
[1642524939894,0.79752,3136.4,3136.2,0.79737]
[1642524940293,0.00113685,3136.5,3136.2,0.79737]
[1642524941563,0.00113685,3136.5,3136.2,1.59473]
[1642524941765,0.00113685,3136.5,3136.3,0.79729]
[1642524942064,0.00113685,3136.5,3136.4,2.06003734]
[1642524946187,3.15113685,3136.5,3136.4,2.01003734]
[1642524947689,3.15113685,3136.5,3136.2,0.79746]
[1642524947889,0.00755313,3136.4,3136.2,0.79746]
[1642524948087,0.00755313,3136.4,3135.9,0.00227369]
[1642524948332,0.1275,3136.3,3135.9,0.00227369]
[1642524948533,0.1275,3136.3,3135.6,1.59501]
[1642524948534,2.66167,3136.3,3135.7,0.00341054]
[1642524948736,0.1275,3136.2,3135.7,0.00341054]
[1642524948940,0.7975332,3136.1,3135.7,0.00341054]
[1642524949542,0.79753,3136.0,3135.8,0.79754]
[1642524949739,0.79753,3136.0,3135.9,1.88221989]
[1642524949940,1.72246,3136.4,3135.9,1.88221989]
[1642524950145,1.59496,3136.4,3135.9,1.88221989]
[1642524950342,1.59496,3136.4,3136.0,0.00170527]
[1642524950742,1.59496,3136.4,3136.2,3.1899]
[1642524950940,3.24828037,3136.5,3136.2,1.59501]
[1642524951138,3.24828037,3136.5,3136.3,1.59479]
[1642524951741,0.00113685,3136.5,3136.3,1.59479]
[1642524951941,0.00113685,3136.5,3136.3,2.39218]
[1642524952985,0.33422685,3136.5,3136.3,2.39218]
[1642524954491,2.1624642,3136.4,3136.3,1.59479]
[1642524954693,2.1624642,3136.4,3136.2,2.39252]
[1642524954890,0.46059,3136.3,3136.2,1.59501]
[1642524955290,0.46059,3136.3,3136.1,1.59502]
[1642524955495,0.33309,3136.3,3136.1,1.59502]
[1642524956741,1.13067,3136.3,3136.1,1.59502]
[1642524958139,1.13067,3136.3,3136.1,2.39253]
[1642524958338,1.13067,3136.3,3136.1,1.59502]
[1642524958939,1.13067,3136.3,3136.0,0.79930527]
[1642524959441,1.13067,3136.3,3136.1,0.00113685]
[1642524960083,1.13067,3136.3,3136.1,0.79870685]
[1642524960489,1.13067,3136.3,3136.1,0.00113685]
[1642524960886,2.13067,3136.3,3135.6,0.00397896]
[1642524961092,0.33309,3136.2,3135.6,0.00397896]
[1642524961392,0.33309,3135.8,3135.3,0.00568423]
[1642524961593,1.21559,3135.8,3135.3,0.00568423]
[1642524962389,0.33309,3135.6,3135.3,0.00568423]
[1642524962788,0.79209,3135.6,3135.3,0.00568423]
[1642524963087,0.79209,3135.6,3135.0,1.59553]
[1642524963088,0.79209,3135.6,3135.1,0.00682108]
[1642524963338,0.79209,3135.6,3135.2,0.79778]
[1642524963531,2.46152237,3135.4,3135.1,0.00682108]
[1642524963732,2.46152237,3135.4,3135.3,0.00568423]
[1642524963931,2.46152237,3135.4,3135.1,0.00682108]
[1642524964435,2.46152237,3135.4,3135.1,0.80462108]
[1642524964639,0.79783,3135.3,3135.1,0.00682108]
[1642524964835,0.33309,3134.8,3134.7,1.59563]
[1642524965240,0.33309,3134.8,3134.7,1.60472477]
[1642524965443,0.33309,3135.5,3134.7,1.60472477]
[1642524965837,1.13093,3134.9,3134.8,0.80632635]
[1642524966039,0.33309,3134.9,3134.8,0.00852635]
[1642524966238,0.33309,3134.9,3134.8,0.30852635]
[1642524966437,0.33309,3134.9,3134.8,2.29954102]
[1642524967482,0.33309,3134.9,3134.8,1.69954102]
[1642524968486,0.33309,3134.9,3134.8,0.00852635]
[1642524969287,6.23309,3134.9,3134.8,0.00852635]
[1642524969490,6.23309,3134.9,3133.7,0.1275]
[1642524969491,0.33309,3134.7,3133.7,0.1275]
[1642524969692,0.33309,3134.7,3133.1,1.63625481]
[1642524969693,0.33309,3134.5,3133.1,1.63625481]
[1642524969890,0.33309,3134.3,3133.8,0.00397896]
[1642524970492,6.5615,3134.4,3133.8,0.00397896]
[1642524970493,0.33309,3134.1,3133.8,0.00397896]
[1642524970692,1.1312,3134.1,3133.8,0.00397896]
[1642524970941,2.5518954,3133.6,3133.5,0.00568424]
[1642524971141,2.5518954,3133.6,3133.4,1.59623]
[1642524971343,0.33309,3133.6,3133.5,0.00568424]
[1642524971944,5.6022,3134.4,3134.1,1.0967591]
[1642524972142,4.3554,3134.4,3134.1,1.0967591]
[1642524972347,4.3554,3134.4,3134.3,1.9128695]
[1642524972646,4.3554,3134.4,3134.3,1.91400635]
[1642524972845,4.3554,3134.4,3134.3,2.21400635]
[1642524973646,4.3554,3134.4,3134.3,1.91400635]
[1642524974446,4.3554,3134.4,3134.3,0.00113685]
[1642524974679,4.06626755,3134.4,3134.3,0.00113685]
[1642524976286,6.81626755,3134.4,3134.3,0.00113685]
[1642524976686,5.9,3134.3,3134.2,2.34472685]
[1642524976989,5.9,3134.3,3134.2,0.79788]
[1642524977794,4.86430755,3134.4,3134.2,0.79788]
[1642524978190,4.06626755,3134.4,3134.2,2.39377]
[1642524978836,4.06626755,3134.4,3134.2,2.34377]
[1642524981643,0.00170527,3134.8,3134.3,0.3]
[1642524981843,0.00170527,3134.8,3134.3,1.09778]
[1642524982106,0.0022737,3134.7,3134.4,1.5954301]
[1642524982496,0.00170527,3134.6,3134.4,1.5954301]
[1642524982895,0.00113685,3134.5,3134.4,1.5954301]
[1642524983396,0.00113685,3134.5,3134.4,1.8954301]
[1642524984698,0.00113685,3134.5,3134.4,1.5954301]
[1642524984900,0.00113685,3134.5,3134.4,0.79775]
[1642524989813,0.00113685,3134.5,3134.4,1.09775]
[1642524990019,0.00113685,3134.5,3134.4,2.74671683]
[1642524990215,0.00113685,3134.5,3134.4,2.44671683]
[1642524990415,0.00113685,3134.5,3134.4,0.79775]
[1642524990615,0.00113685,3134.5,3134.4,1.09775]
[1642524991216,0.00113685,3134.5,3134.4,0.79775]
[1642524991814,1.90924234,3134.5,3134.4,0.79775]
[1642524992417,0.00113685,3134.5,3134.4,0.79775]
[1642524993945,1.733743,3134.5,3134.4,0.79775]
[1642524997390,0.00113685,3134.5,3134.4,0.79775]
[1642524998592,0.00113685,3134.5,3134.4,1.09775]
[1642524998790,0.00113685,3134.5,3134.4,4.2402368]
[1642524998995,0.00113685,3134.5,3134.4,2.09998224]
[1642524999194,0.00113685,3134.5,3134.4,0.79775]
[1642524999593,0.00113685,3134.5,3134.4,1.09775]
[1642525001250,0.00113685,3134.5,3134.4,5.24775]
[1642525001447,0.00113685,3134.5,3134.4,5.67525]
[1642525001848,3.9453,3135.5,3134.6,1.5953]
[1642525002049,3.9453,3135.5,3134.8,1.6805743]
[1642525002248,0.00454739,3135.3,3134.8,1.9805743]
[1642525002448,0.00454739,3135.3,3135.1,1.44125692]
[1642525002649,3.25397896,3135.2,3135.1,1.44125692]
[1642525002854,3.25397896,3135.2,3134.8,1.9805743]
[1642525003050,3.25397896,3135.2,3135.0,3.19072]
[1642525003253,0.00341054,3135.1,3135.0,3.19072]
[1642525003649,0.00341054,3135.1,3135.0,3.49072]
[1642525004050,0.00341054,3135.1,3135.0,3.19185916]
[1642525004250,0.00341054,3135.1,3135.0,4.48427539]
[1642525004452,0.00341054,3135.1,3135.0,4.18427539]
[1642525005098,0.00341054,3135.1,3135.0,4.48427539]
[1642525005295,0.00341054,3135.1,3135.0,3.19185916]
[1642525005696,0.00341054,3135.1,3135.0,2.89185916]
[1642525009856,0.00341054,3135.1,3135.0,2.80787046]
[1642525010056,1.13091054,3135.1,3134.6,2.39371]
[1642525010253,0.92546,3135.0,3134.6,2.39371]
[1642525010453,0.92830212,3135.0,3134.7,0.79793]
[1642525010660,0.00227369,3134.9,3134.7,0.79793]
[1642525010854,0.1275,3134.8,3134.6,2.39371]
[1642525011056,0.12920527,3134.8,3134.6,2.39371]
[1642525011255,0.00113685,3134.7,3134.6,2.39371]
[1642525011457,0.00113685,3134.7,3134.6,1.59577]
[1642525012497,0.12863685,3134.7,3134.6,1.59577]
[1642525013600,0.00113685,3134.7,3134.6,1.59577]
[1642525013798,0.00113685,3134.7,3134.6,1.54577]
[1642525020601,0.79776,3135.0,3134.6,1.54577]
[1642525020800,0.79776,3135.0,3134.7,0.79776]
[1642525020999,0.79946527,3135.0,3134.7,0.79776]
[1642525021799,0.79946527,3135.0,3134.7,1.59553]
[1642525022000,0.79946527,3135.0,3134.7,1.54553]
[1642525022401,0.79946527,3135.0,3134.8,1.96913863]
[1642525024057,0.00170527,3135.0,3134.9,1.27106154]
[1642525025168,0.00170527,3135.0,3134.9,1.39856154]
[1642525025363,3.24714352,3135.3,3135.0,6.74503]
[1642525025564,4.23585506,3135.8,3135.1,6.2775]
[1642525025761,8.44984109,3136.2,3135.2,5.35]
[1642525025762,5.37664109,3136.2,3135.2,5.35]
[1642525025963,3.24704636,3135.6,3135.3,4.8275]
[1642525026163,4.05880795,3136.1,3135.4,4.73042718]
[1642525026365,4.05880795,3136.1,3135.5,1.722193]
[1642525026562,0.00170527,3136.0,3135.5,2.771213]
[1642525026763,0.00170527,3136.0,3135.5,3.568543]
[1642525026961,0.00113685,3135.9,3135.5,3.568543]
[1642525027195,0.00113685,3135.9,3135.6,2.61620692]
[1642525027403,0.00113685,3135.9,3135.6,2.31620692]
[1642525027600,0.00113685,3135.9,3135.6,3.11355682]
[1642525027804,0.00113685,3135.9,3135.6,6.30302682]
[1642525028001,0.00113685,3135.9,3135.6,5.50567682]
[1642525029604,4.2715,3136.4,3135.6,5.50567682]
[1642525029801,4.2715,3136.4,3135.8,3.1893422]
[1642525030006,4.2715,3136.4,3135.9,1.59464]
[1642525030007,0.00227369,3136.3,3135.9,1.59464]
[1642525030401,0.00170527,3136.2,3135.9,2.39196]
[1642525030843,0.00113684,3136.1,3136.0,0.79732]
[1642525031848,2.3264196,3136.1,3135.9,0.22375116]
[1642525032048,2.3264196,3136.1,3135.7,0.00113685]
[1642525032049,2.4039196,3136.1,3135.7,0.00113685]
[1642525032248,3.4039196,3136.1,3135.7,0.00113685]
[1642525032448,4.2015496,3136.1,3135.4,0.00397896]
[1642525032650,4.2016593,3136.1,3135.4,0.00397896]
[1642525032848,4.5016593,3136.1,3135.4,0.00397896]
[1642525033048,3.7039196,3136.1,3135.4,0.00397896]
[1642525033248,1.96276163,3135.6,3135.4,0.00397896]
[1642525033450,2.9775,3135.5,3135.4,0.00397896]
[1642525033650,3.77528,3135.5,3135.4,0.00397896]
[1642525034255,3.72528,3135.5,3135.4,0.00397896]
[1642525034452,6.77528,3135.5,3135.4,0.00397896]
[1642525034697,3.72528,3135.5,3135.4,0.00397896]
[1642525035600,8.07528,3135.5,3135.4,0.00397896]
[1642525036000,11.10741131,3135.5,3135.4,0.00397896]
[1642525037002,11.56641131,3135.5,3135.4,0.00397896]
[1642525037402,5.9,3135.4,3135.3,0.1275]
[1642525037602,9.48253628,3135.4,3135.3,0.1275]
[1642525037806,11.82591074,3135.4,3134.6,2.39353]
[1642525038104,11.82591074,3135.4,3134.7,0.00397896]
[1642525038105,0.79803,3135.2,3134.7,0.00397896]
[1642525038348,1.90926014,3135.0,3134.7,0.00397896]
[1642525038552,0.1275,3134.9,3134.5,0.00511581]
[1642525038752,3.12547717,3134.9,3134.5,0.00511581]
[1642525038952,0.1275,3134.9,3134.5,0.00511581]
[1642525039351,1.1275,3134.9,3134.5,0.00511581]
[1642525039751,0.79802,3134.8,3134.5,0.00511581]
[1642525040361,0.79802,3134.8,3134.5,1.65717362]
[1642525040557,1.90926014,3135.0,3134.6,1.59573]
[1642525040753,0.1275,3135.5,3134.6,1.60027739]
[1642525040953,1.1275,3135.5,3134.6,1.60027739]
[1642525041552,18.81,3135.3,3134.6,0.00454739]
[1642525041754,0.79782,3135.0,3134.6,0.00454739]
[1642525041951,0.92532,3135.0,3134.6,0.00454739]
[1642525042195,0.92532,3135.0,3134.5,0.00511581]
[1642525042398,0.79782,3135.0,3134.5,0.00511581]
[1642525042997,1.93609463,3134.9,3134.5,0.00511581]
[1642525043399,0.79802,3134.8,3134.5,0.00511581]
[1642525043697,0.74802,3134.8,3134.5,0.00511581]
[1642525044496,5.40853027,3134.8,3134.5,0.00511581]
[1642525044698,25.01660837,3134.8,3134.5,0.00511581]
[1642525044897,25.01660837,3134.8,3134.3,0.00625266]
[1642525044898,0.1275,3134.7,3134.3,0.00625266]
[1642525045097,0.1275,3134.7,3134.0,0.00795793]
[1642525045298,0.1275,3134.7,3133.9,0.00852635]
[1642525045299,0.79819,3134.5,3133.9,0.00852635]
[1642525045602,0.79819,3134.5,3133.4,0.01136847]
[1642525045603,2.01647406,3134.0,3133.4,0.01136847]
[1642525045858,5.9,3133.8,3133.3,0.69826]
[1642525046054,5.9,3133.8,3133.2,1.40779847]
[1642525046256,5.9,3133.8,3133.0,0.1275]
[1642525046257,15.003,3133.4,3133.0,0.1275]
[1642525046458,15.003,3133.4,3132.6,0.1275]
[1642525046656,0.00459996,3133.3,3133.1,0.00170527]
[1642525046856,0.7277,3133.3,3133.1,0.00170527]
[1642525047055,0.7277,3133.3,3132.7,0.79839]
[1642525047056,2.08988208,3133.2,3132.7,0.79839]
[1642525047255,2.08988208,3133.2,3132.8,0.00341054]
[1642525047456,2.08988208,3133.2,3132.8,0.80176054]
[1642525047457,0.79839,3133.1,3132.8,0.80176054]
[1642525047859,0.79839,3133.1,3132.9,0.00284212]
[1642525052201,6.04339636,3133.0,3132.3,0.1275]
[1642525052401,5.915788,3132.8,3132.1,4.23731522]
[1642525052600,1.72515703,3132.5,3132.4,0.00284211]
[1642525052803,1.72515703,3132.5,3132.4,1.59969211]
[1642525053008,1.72515703,3132.5,3132.4,0.00284211]
[1642525053371,1.72515703,3132.5,3132.3,0.00341054]
[1642525054061,1.72443,3133.0,3132.3,0.00341054]
[1642525054668,0.79843,3132.8,3132.3,0.00341054]
[1642525054867,0.1275,3132.7,3132.3,0.00341054]
[1642525055268,0.1275,3132.7,3132.4,0.79841]
[1642525055470,1.87672755,3132.8,3132.4,1.59681]
[1642525055672,3.7773,3133.0,3132.5,0.00227369]
[1642525055970,0.00113685,3133.1,3132.5,3.32254369]
[1642525056173,0.00113685,3133.1,3132.9,1.13601311]
[1642525056370,15.003,3133.4,3132.9,1.93408311]
[1642525056571,15.003,3133.4,3132.9,2.23408311]
[1642525056769,0.00113685,3133.3,3132.9,2.36158311]
[1642525056971,0.00113685,3133.3,3132.9,1.09807]
[1642525057402,0.00113685,3133.3,3132.9,0.79807]
[1642525057800,2.01361352,3133.2,3132.9,0.79807]
[1642525058201,2.01361352,3133.2,3132.8,2.3942]
[1642525058401,2.01361352,3133.2,3132.8,2.6942]
[1642525058599,2.01361352,3133.2,3132.9,0.00113685]
[1642525059800,2.81194352,3133.2,3132.9,0.00113685]
[1642525060200,2.81194352,3133.2,3132.8,0.00170527]
[1642525060402,2.01361352,3133.2,3132.8,0.00170527]
[1642525061453,2.01361352,3133.2,3132.8,1.59806527]
[1642525061650,2.01361352,3133.2,3132.9,0.79817]
[1642525061851,0.00113685,3133.3,3133.0,2.4072956]
[1642525062054,0.00113685,3133.3,3133.0,3.5054756]
[1642525062250,0.00113685,3133.3,3133.0,1.09818]
[1642525062653,0.00113685,3133.3,3133.1,0.7980232]
[1642525062851,0.00113685,3133.3,3133.2,3.5335774]
[1642525064055,0.00113685,3133.3,3133.2,1.54831859]
[1642525064252,3.95113685,3133.3,3133.2,1.54831859]
[1642525064728,3.95113685,3133.3,3132.9,2.39545685]
[1642525064729,3.95113685,3133.3,3132.9,0.00113685]
[1642525065114,2.33017825,3133.2,3132.7,0.00227369]
[1642525065314,2.33017825,3133.2,3132.6,0.00284212]
[1642525066719,0.92585,3133.1,3132.6,0.00284212]
[1642525067317,1.85105,3133.1,3132.6,0.00284212]
[1642525067518,1.85105,3133.1,3132.2,0.00511581]
[1642525067918,2.15105,3133.1,3132.2,0.00511581]
[1642525068117,1.85105,3133.1,3132.0,0.00625266]
[1642525068553,1.19798722,3133.0,3132.0,0.00625266]
[1642525068754,0.74848,3132.7,3132.0,0.00625266]
[1642525068952,0.1275,3132.6,3132.0,0.00625266]
[1642525069557,2.27099149,3132.2,3132.0,0.80470266]
[1642525069758,0.1277,3132.8,3132.1,0.79842]
[1642525069957,0.1277,3132.8,3132.1,2.40079423]
[1642525070160,0.1277,3132.8,3132.5,1.33442542]
[1642525070561,0.1275,3133.2,3132.6,0.00284212]
[1642525070757,0.1275,3133.2,3132.6,2.42434407]
[1642525070957,0.1275,3133.2,3132.6,0.00284212]
[1642525070958,2.07464042,3132.9,3132.6,0.00284212]
[1642525071156,2.07464042,3132.9,3132.7,0.00227369]
[1642525071356,0.1275,3133.2,3132.6,0.00284212]
[1642525071555,0.1275,3133.2,3132.7,1.59657]
[1642525071756,0.1275,3133.2,3132.7,0.7983]
[1642525071960,0.1275,3133.2,3132.8,0.00170527]
[1642525072597,0.1275,3133.2,3132.6,0.00284212]
[1642525072798,1.96904867,3133.1,3132.6,0.00284212]
[1642525073198,1.96904867,3133.1,3132.2,0.00511581]
[1642525074202,1.96904867,3133.1,3132.4,0.79838]
[1642525074402,1.96904867,3133.1,3132.4,1.59674]
[1642525074403,2.12157525,3132.5,3132.4,1.59674]
[1642525075004,0.79842,3133.0,3132.4,1.59674]
[1642525075204,0.1275,3133.2,3132.4,1.59674]
[1642525075205,0.1275,3133.2,3132.8,1.17319575]
[1642525075405,0.1275,3133.2,3132.8,2.76969575]
[1642525075605,0.1275,3133.2,3132.8,1.5965]
[1642525076855,2.28434302,3133.1,3132.8,1.5965]
[1642525077051,2.28434302,3133.1,3132.8,3.06554244]
[1642525077256,2.28434302,3133.1,3132.8,5.49286902]
[1642525077654,2.28434302,3133.1,3132.8,5.45934913]
[1642525077853,2.28434302,3133.1,3132.8,3.06554244]
[1642525080202,2.28434302,3133.1,3132.8,1.5965]
[1642525080806,2.28434302,3133.1,3132.8,0.79825]
[1642525081304,0.79834,3133.0,3132.8,2.23107084]
[1642525082707,0.79834,3133.0,3132.8,0.79825]
[1642525083354,0.79834,3133.0,3132.7,1.59649]
[1642525083755,0.79834,3133.0,3132.8,0.00170527]
[1642525083954,5.6,3132.9,3132.7,1.54819527]
[1642525084356,6.69838,3132.9,3132.4,1.59675]
[1642525084556,0.1275,3132.8,3132.4,1.59675]
[1642525084755,0.1275,3132.8,3132.5,0.00170527]
[1642525085157,0.9260213,3132.8,3132.3,0.00284212]
[1642525085359,1.47633174,3132.6,3132.3,0.00284212]
[1642525085560,2.08685076,3132.4,3132.2,0.00341054]
[1642525085757,5.7277,3132.3,3132.2,0.00341054]
[1642525086759,0.1277,3132.3,3132.2,0.00341054]
[1642525087406,3.31316076,3132.4,3132.2,0.00341054]
[1642525087609,3.01316076,3132.4,3132.2,0.00341054]
[1642525087802,3.31316076,3132.4,3132.2,0.00341054]
[1642525089404,4.91056296,3132.4,3132.2,0.00341054]
[1642525090213,6.9,3132.3,3132.2,0.00341054]
[1642525091049,7.359,3132.3,3132.2,0.00341054]
[1642525092450,5.9,3132.2,3132.1,0.1275]
[1642525092651,7.99872,3132.2,3132.1,0.1275]
[1642525094899,7.99872,3132.2,3132.1,0.0775]
[1642525095503,6.99872,3132.2,3132.1,0.0775]
[1642525095697,7.99872,3132.2,3132.1,0.0775]
[1642525097703,8.29872,3132.2,3132.1,0.0775]
[1642525098845,7.99872,3132.2,3132.1,0.0775]
[1642525100653,8.76512,3132.2,3132.1,0.0775]
[1642525101455,9.06512,3132.2,3132.1,0.0775]
[1642525101655,9.06512,3132.2,3131.8,4.79095466]
[1642525101656,5.9,3132.1,3131.8,4.79095466]
[1642525101856,0.79877,3132.0,3131.8,4.79095466]
[1642525102103,1.09877,3132.0,3131.9,0.00170527]
[1642525102703,5.94877,3132.0,3131.9,0.00170527]
[1642525103403,6.94877,3132.0,3131.9,0.00170527]
[1642525104004,0.79877,3132.0,3131.9,0.00170527]
[1642525104509,2.20765076,3132.4,3131.9,0.00170527]
[1642525104510,0.79854,3132.2,3131.9,0.00170527]
[1642525104707,2.08685076,3132.4,3132.0,0.79854]
[1642525105309,2.38685076,3132.4,3131.9,0.00170527]
[1642525105712,2.38685076,3132.4,3132.0,0.79852]
[1642525105957,0.79853,3132.2,3131.9,0.00170527]
[1642525106358,1.09853,3132.2,3131.9,0.00170527]
[1642525106560,2.09853,3132.2,3131.9,0.00170527]
[1642525107560,0.3,3132.0,3131.9,0.00170527]
[1642525107761,6.69871,3132.0,3131.9,0.00170527]
[1642525108759,1.09871,3132.0,3131.9,0.00170527]
[1642525108961,0.79871,3132.0,3131.9,0.00170527]
[1642525109164,0.79855,3132.2,3131.9,2.41817004]
[1642525109363,0.79855,3132.2,3131.9,0.00170527]
[1642525109604,0.79855,3132.2,3132.0,0.00113685]
[1642525110412,1.39855,3132.2,3132.0,0.00113685]
[1642525110610,1.52625,3132.2,3132.0,0.00113685]
[1642525111214,7.26393893,3132.1,3132.0,0.00113685]
[1642525111414,7.39163893,3132.1,3132.0,0.00113685]
[1642525111615,8.39163893,3132.1,3132.0,0.00113685]
[1642525112014,7.0277,3132.1,3132.0,0.00113685]
[1642525112615,6.0277,3132.1,3132.0,0.00113685]
[1642525113017,6.3277,3132.1,3132.0,0.00113685]
[1642525113214,6.0277,3132.1,3132.0,0.00113685]
[1642525113661,5.9,3132.1,3132.0,0.00113685]
[1642525114963,6.2,3132.1,3132.0,0.00113685]
[1642525115166,7.2,3132.1,3132.0,0.00113685]
[1642525115365,5.9,3132.1,3132.0,0.00113685]
[1642525115565,7.5,3132.1,3132.0,0.00113685]
[1642525115764,7.6277,3132.1,3132.0,0.00113685]
[1642525116767,5.9,3132.1,3132.0,0.00113685]
[1642525116966,6.2,3132.1,3132.0,0.00113685]
[1642525117808,6.5,3132.1,3132.0,0.00113685]
[1642525119912,6.6277,3132.1,3132.0,0.00113685]
[1642525120110,7.6277,3132.1,3132.0,0.00113685]
[1642525120715,7.3277,3132.1,3132.0,0.00113685]
[1642525122058,7.2,3132.1,3132.0,0.00113685]
[1642525123061,6.2,3132.1,3132.0,0.00113685]
[1642525123359,7.2,3132.1,3132.0,0.00113685]
[1642525123558,5.9,3132.1,3132.0,0.00113685]
[1642525124804,6.2,3132.1,3132.0,0.00113685]
[1642525125004,5.9,3132.1,3132.0,0.00113685]
[1642525125203,6.2,3132.1,3132.0,0.00113685]
[1642525125404,1.5971663,3132.2,3132.0,0.00113685]
[1642525125606,0.79855,3132.2,3132.0,0.00113685]
[1642525126009,0.79855,3132.2,3132.0,0.79969685]
[1642525126410,0.79855,3132.2,3132.0,0.00113685]
[1642525126618,0.79855,3132.2,3131.8,4.74209151]
[1642525126811,1.5971548,3132.2,3131.8,4.74209151]
[1642525127009,0.7986,3132.1,3131.8,4.74209151]
[1642525127309,0.7986,3132.1,3131.9,0.79859]
[1642525128214,2.08685076,3132.4,3131.9,0.79859]
[1642525128659,0.00113685,3132.2,3131.9,0.79859]
[1642525128855,0.00113685,3132.2,3132.0,0.79842]
[1642525129052,0.00113685,3132.2,3132.1,1.22574182]
[1642525129653,0.00113685,3132.2,3132.0,1.59683]
[1642525130663,0.00113685,3132.2,3132.1,1.19762821]
[1642525132905,0.00113685,3132.2,3132.0,1.59683]
[1642525134108,0.00113685,3132.2,3132.0,2.71436755]
[1642525135108,0.00113685,3132.2,3132.0,1.59683]
[1642525136159,0.00113685,3132.2,3132.1,1.28724013]
[1642525142016,0.00113685,3132.2,3132.1,4.27344551]
[1642525142213,0.00113685,3132.2,3132.1,3.24744013]
[1642525142413,3.22131735,3133.2,3132.1,5.84744013]
[1642525142614,3.22131735,3133.2,3133.0,1.18783468]
[1642525142813,3.50511581,3133.1,3133.0,1.98606468]
[1642525143013,3.50511581,3133.1,3133.0,1.18783468]
[1642525143652,0.00511581,3133.1,3133.0,1.18783468]
[1642525148310,15.003,3133.4,3133.0,3.12755353]
[1642525148509,15.003,3133.4,3133.1,1.59609]
[1642525148710,0.00113685,3133.3,3133.1,1.59609]
[1642525149710,14.77913685,3133.4,3133.1,1.59609]
[1642525150310,7.504,3133.4,3133.1,1.59609]
[1642525150511,7.504,3133.4,3133.2,0.00815439]
[1642525150713,7.504,3133.4,3133.1,2.39423]
[1642525152082,7.454,3133.4,3133.1,2.39423]
[1642525154283,7.275,3133.3,3133.1,2.39423]
[1642525155413,7.225,3133.3,3133.1,2.39423]
[1642525157515,0.69104,3133.3,3133.1,2.39423]
[1642525157718,7.454,3133.4,3133.1,6.34423]
[1642525157719,7.21504,3133.4,3133.1,6.34423]
[1642525157917,6.73504,3133.4,3133.2,0.00848825]
[1642525158117,0.35151,3133.4,3133.2,0.00848825]
[1642525158382,0.03,3133.5,3133.2,0.00848825]
[1642525158584,0.1275,3133.7,3133.2,0.00848825]
[1642525158783,2.45625593,3134.2,3133.6,2.56359894]